bitfinex-derivatives/quotes_BTCF0:USTF0_20260221
["timestamp","ask_amount","ask_price","bid_price","bid_amount"]
[1771650298692,0.014734,67898.0,67883.0,0.014737]
[1771650298899,0.014734,67898.0,67879.0,0.014737]
[1771650298900,0.014736,67886.0,67879.0,0.014737]
[1771650299286,0.014736,67886.0,67878.0,0.014738]
[1771650300183,0.014736,67885.0,67878.0,0.014738]
[1771650300792,0.029472,67885.0,67877.0,0.014738]
[1771650300998,0.014736,67885.0,67877.0,0.014738]
[1771650302284,0.014736,67887.0,67877.0,0.029476]
[1771650302595,0.014736,67886.0,67878.0,0.014738]
[1771650302895,0.014735,67889.0,67878.0,0.014738]
[1771650303295,0.014735,67889.0,67880.0,0.014737]
[1771650305399,0.014735,67889.0,67881.0,0.014737]
[1771650306098,0.014735,67889.0,67882.0,0.014737]
[1771650307997,0.014735,67890.0,67883.0,0.014736]
[1771650308292,0.014736,67887.0,67880.0,0.014737]
[1771650308500,0.014736,67885.0,67877.0,0.014738]
[1771650308694,0.014736,67885.0,67875.0,0.014738]
[1771650308999,0.014736,67885.0,67877.0,0.014738]
[1771650309188,0.014736,67886.0,67877.0,0.029476]
[1771650309591,0.014736,67886.0,67877.0,0.014738]
[1771650312799,0.014736,67887.0,67869.0,0.32885388]
[1771650312800,0.014738,67879.0,67869.0,0.32885388]
[1771650313004,0.014734,67897.0,67865.0,0.01474]
[1771650313005,0.014739,67874.0,67865.0,0.01474]
[1771650313703,0.014739,67874.0,67866.0,0.01474]
[1771650315405,0.014739,67874.0,67866.0,0.02948]
[1771650315706,0.014739,67874.0,67867.0,0.01474]
[1771650316604,0.014739,67874.0,67868.0,0.01474]
[1771650316901,0.014739,67874.0,67862.0,0.014741]
[1771650316902,0.014739,67872.0,67862.0,0.014741]
[1771650317097,0.014739,67872.0,67864.0,0.014741]
[1771650317306,0.014739,67874.0,67864.0,0.014741]
[1771650317307,0.014738,67875.0,67864.0,0.014741]
[1771650317506,0.014738,67876.0,67869.0,0.01474]
[1771650317706,0.029476,67876.0,67869.0,0.01474]
[1771650318007,0.014738,67875.0,67869.0,0.01474]
[1771650319603,0.015738,67875.0,67869.0,0.01474]
[1771650320204,0.015738,67875.0,67870.0,0.014739]
[1771650320405,0.015738,67875.0,67869.0,0.01474]
[1771650321012,0.014738,67875.0,67869.0,0.01474]
[1771650321311,0.015738,67875.0,67869.0,0.01474]
[1771650321708,0.015738,67875.0,67868.0,0.01474]
[1771650322707,0.014738,67875.0,67868.0,0.01474]
[1771650323414,0.014739,67874.0,67868.0,0.01474]
[1771650323715,0.014739,67874.0,67867.0,0.01474]
[1771650323915,0.014739,67874.0,67866.0,0.01474]
[1771650324812,0.014739,67873.0,67865.0,0.01474]
[1771650327316,0.014738,67876.0,67867.0,0.01474]
[1771650327516,0.014738,67875.0,67867.0,0.01474]
[1771650330309,0.05789675,67890.0,67865.0,0.01474]
[1771650330310,0.40974753,67891.0,67873.0,0.014739]
[1771650330510,0.014737,67883.0,67875.0,0.014738]
[1771650330815,0.014737,67882.0,67875.0,0.014738]
[1771650331015,0.014736,67885.0,67877.0,0.014738]
[1771650331214,0.014736,67886.0,67877.0,0.014738]
[1771650331413,0.014736,67885.0,67876.0,0.014738]
[1771650331715,0.014736,67885.0,67877.0,0.014738]
[1771650333017,0.014736,67884.0,67877.0,0.014738]
[1771650333616,0.014736,67885.0,67877.0,0.014738]
[1771650334211,0.014737,67882.0,67874.0,0.014738]
[1771650336010,0.014736,67886.0,67874.0,0.014738]
[1771650336215,0.014737,67883.0,67874.0,0.014738]
[1771650336519,0.014737,67882.0,67874.0,0.014738]
[1771650336931,0.014737,67882.0,67874.0,0.029476]
[1771650337421,0.014737,67883.0,67875.0,0.014738]
[1771650340220,0.014737,67883.0,67874.0,0.014738]
[1771650340221,0.014736,67887.0,67878.0,0.014738]
[1771650340432,0.014736,67886.0,67877.0,0.014738]
[1771650341933,0.014736,67886.0,67878.0,0.014738]
[1771650342332,0.014736,67887.0,67879.0,0.014737]
[1771650342528,0.029472,67887.0,67879.0,0.014737]
[1771650342736,0.014736,67886.0,67879.0,0.014737]
[1771650344638,0.015736,67886.0,67879.0,0.014737]
[1771650347440,0.014736,67885.0,67878.0,0.014738]
[1771650347635,0.014737,67884.0,67876.0,0.014738]
[1771650348238,0.014737,67884.0,67876.0,0.029476]
[1771650349331,0.014737,67884.0,67876.0,0.014738]
[1771650351133,0.014735,67890.0,67871.0,0.2284834]
[1771650351337,0.014735,67889.0,67880.0,0.014737]
[1771650351930,0.41103805,67897.0,67871.0,0.2284834]
[1771650351931,0.014734,67894.0,67886.0,0.014736]
[1771650352130,0.014734,67894.0,67887.0,0.014736]
[1771650352539,0.014734,67896.0,67888.0,0.014735]
[1771650352738,0.014734,67895.0,67888.0,0.014735]
[1771650353138,0.014734,67895.0,67889.0,0.014735]
[1771650353737,0.014734,67895.0,67889.0,0.02947]
[1771650354239,0.029468,67895.0,67889.0,0.014735]
[1771650354443,0.014734,67894.0,67889.0,0.014735]
[1771650354646,0.014734,67894.0,67889.0,0.02947]
[1771650355450,0.015734,67895.0,67890.0,0.014735]
[1771650356344,0.001,67894.0,67890.0,0.014735]
[1771650356747,0.014734,67895.0,67890.0,0.014735]
[1771650356950,0.015734,67895.0,67890.0,0.014735]
[1771650357243,0.014735,67893.0,67886.0,0.014736]
[1771650358242,0.014735,67892.0,67886.0,0.014736]
[1771650358937,0.014735,67891.0,67886.0,0.014736]
[1771650359337,0.014735,67891.0,67885.0,0.014736]
[1771650361243,0.014735,67893.0,67886.0,0.014736]
[1771650362449,0.014735,67892.0,67885.0,0.014736]
[1771650363145,0.014735,67890.0,67882.0,0.014737]
[1771650363350,0.02947,67892.0,67884.0,0.014736]
[1771650363547,0.014735,67890.0,67882.0,0.014737]
[1771650363744,0.014735,67890.0,67882.0,0.029474]
[1771650364654,0.014735,67890.0,67883.0,0.014737]
[1771650365745,0.014735,67891.0,67883.0,0.014737]
[1771650366149,0.014735,67890.0,67883.0,0.014737]
[1771650366347,0.014735,67890.0,67881.0,0.014737]
[1771650366647,0.014735,67890.0,67882.0,0.014737]
[1771650370341,0.014734,67894.0,67883.0,0.014737]
[1771650370549,0.014734,67894.0,67883.0,0.014736]
[1771650371153,0.014734,67894.0,67884.0,0.014736]
[1771650371354,0.014734,67894.0,67885.0,0.014736]
[1771650372352,0.014734,67894.0,67886.0,0.014736]
[1771650373054,0.029468,67894.0,67886.0,0.014736]
[1771650374155,0.014734,67894.0,67886.0,0.014736]
[1771650374356,0.014734,67894.0,67887.0,0.014736]
[1771650379864,0.029468,67894.0,67887.0,0.014736]
[1771650380058,0.014734,67895.0,67887.0,0.014736]
[1771650380260,0.014734,67895.0,67888.0,0.014736]
[1771650380963,0.014734,67894.0,67888.0,0.014736]
[1771650381164,0.014733,67902.0,67888.0,0.014736]
[1771650381165,0.014734,67897.0,67890.0,0.014735]
[1771650381360,0.014734,67896.0,67890.0,0.014735]
[1771650382662,0.015734,67896.0,67890.0,0.014735]
[1771650383961,0.014734,67895.0,67890.0,0.014735]
[1771650385161,0.015734,67895.0,67890.0,0.014735]
[1771650388063,0.015734,67895.0,67889.0,0.02947]
[1771650388269,0.015734,67895.0,67890.0,0.014735]
[1771650389371,0.014734,67894.0,67888.0,0.029472]
[1771650389671,0.014734,67894.0,67888.0,0.014736]
[1771650391973,0.029468,67894.0,67888.0,0.014736]
[1771650392972,0.029468,67894.0,67887.0,0.014736]
[1771650393272,0.014734,67894.0,67888.0,0.014736]
[1771650399179,0.014734,67895.0,67888.0,0.014735]
[1771650399380,0.20934562,67894.0,67888.0,0.014735]
[1771650399566,0.014734,67895.0,67888.0,0.014735]
[1771650399871,0.20934562,67894.0,67888.0,0.014735]
[1771650400072,0.014734,67895.0,67888.0,0.014735]
[1771650400272,0.20934615,67894.0,67888.0,0.014735]
[1771650400479,0.014734,67895.0,67888.0,0.014735]
[1771650400681,0.20934615,67894.0,67888.0,0.014735]
[1771650400880,0.014734,67895.0,67888.0,0.014735]
[1771650401180,0.20934615,67894.0,67888.0,0.014735]
[1771650401380,0.014734,67895.0,67888.0,0.014735]
[1771650403385,0.014734,67894.0,67888.0,0.014735]
[1771650403991,0.014734,67895.0,67888.0,0.02947]
[1771650404192,0.014733,67899.0,67891.0,0.014735]
[1771650404387,0.22407947,67898.0,67892.0,0.014735]
[1771650404588,0.014733,67898.0,67892.0,0.014735]
[1771650405085,0.014733,67898.0,67892.0,0.015655]
[1771650405291,0.014733,67898.0,67892.0,0.014735]
[1771650405888,0.015733,67898.0,67892.0,0.014735]
[1771650406490,0.015733,67898.0,67892.0,0.02947]
[1771650408093,0.015733,67898.0,67893.0,0.014734]
[1771650409796,0.030467,67898.0,67893.0,0.014734]
[1771650411003,0.030467,67898.0,67889.0,0.014735]
[1771650411300,0.001,67898.0,67894.0,0.014734]
[1771650411599,0.015733,67898.0,67893.0,0.014734]
[1771650411992,0.014733,67898.0,67893.0,0.014734]
[1771650412397,0.014734,67896.0,67891.0,0.014735]
[1771650413401,0.014734,67896.0,67890.0,0.014735]
[1771650413993,0.029468,67896.0,67890.0,0.014735]
[1771650414302,0.014734,67895.0,67890.0,0.014735]
[1771650414502,0.014734,67895.0,67889.0,0.014735]
[1771650415904,0.014734,67895.0,67888.0,0.014735]
[1771650416602,0.014733,67900.0,67882.0,0.014737]
[1771650416905,0.014734,67894.0,67885.0,0.014736]
[1771650417097,0.014734,67894.0,67886.0,0.014736]
[1771650418104,0.014734,67893.0,67886.0,0.014736]
[1771650421203,0.014736,67888.0,67879.0,0.014737]
[1771650421410,0.014736,67887.0,67880.0,0.014737]
[1771650421605,0.029472,67887.0,67879.0,0.014737]
[1771650422202,0.014736,67887.0,67879.0,0.014737]
[1771650422511,0.014735,67889.0,67882.0,0.014737]
[1771650423702,0.014735,67890.0,67883.0,0.014737]
[1771650423902,0.014735,67890.0,67883.0,0.014736]
[1771650424208,0.014735,67891.0,67883.0,0.029472]
[1771650424402,0.014735,67891.0,67884.0,0.014736]
[1771650424609,0.014735,67892.0,67885.0,0.014736]
[1771650426010,0.014735,67893.0,67885.0,0.029472]
[1771650426208,0.014735,67893.0,67885.0,0.014736]
[1771650426710,0.014735,67893.0,67886.0,0.014736]
[1771650427211,0.014735,67893.0,67885.0,0.014736]
[1771650427406,0.014735,67893.0,67886.0,0.014736]
[1771650428112,0.014735,67890.0,67882.0,0.014737]
[1771650428311,0.014735,67890.0,67883.0,0.014737]
[1771650428506,0.014735,67890.0,67879.0,0.014737]
[1771650428507,0.014735,67891.0,67880.0,0.014737]
[1771650428709,0.014736,67889.0,67882.0,0.014737]
[1771650429212,0.014735,67891.0,67882.0,0.014737]
[1771650429413,0.014735,67891.0,67883.0,0.014737]
[1771650429914,0.014735,67891.0,67884.0,0.014736]
[1771650430304,0.014735,67890.0,67882.0,0.014737]
[1771650431011,0.014735,67889.0,67882.0,0.014737]
[1771650433214,0.014735,67889.0,67881.0,0.014737]
[1771650433616,0.014735,67889.0,67882.0,0.014737]
[1771650434120,0.014735,67890.0,67882.0,0.014737]
[1771650434914,0.014735,67890.0,67882.0,0.029474]
[1771650435211,0.014735,67890.0,67883.0,0.014737]
[1771650436813,0.014734,67896.0,67874.0,0.32885388]
[1771650437022,0.2239924,67895.0,67888.0,0.014735]
[1771650437212,0.014734,67895.0,67888.0,0.014735]
[1771650438120,0.015734,67895.0,67889.0,0.014735]
[1771650439318,0.014734,67894.0,67889.0,0.014735]
[1771650439922,0.014735,67890.0,67885.0,0.014736]
[1771650440413,0.014735,67890.0,67884.0,0.014736]
[1771650440713,0.014736,67888.0,67881.0,0.014737]
[1771650441318,0.014736,67888.0,67879.0,0.014737]
[1771650441623,0.014736,67887.0,67879.0,0.014737]
[1771650442208,0.014736,67888.0,67878.0,0.014738]
[1771650442409,0.014736,67886.0,67878.0,0.014738]
[1771650445816,0.3549882,67893.0,67875.0,0.32885388]
[1771650446026,0.3549882,67893.0,67870.0,0.05789969]
[1771650446027,0.014738,67879.0,67870.0,0.34359288]
[1771650446225,0.014737,67882.0,67873.0,0.014739]
[1771650446414,0.014737,67883.0,67875.0,0.014738]
[1771650446723,0.014737,67883.0,67875.0,0.029476]
[1771650446926,0.014737,67883.0,67875.0,0.014738]
[1771650447528,0.014736,67884.0,67876.0,0.014738]
[1771650447918,0.014737,67883.0,67876.0,0.014738]
[1771650449634,0.014736,67884.0,67876.0,0.014738]
[1771650450129,0.014736,67884.0,67875.0,0.014738]
[1771650450130,0.014736,67884.0,67877.0,0.014738]
[1771650454130,0.014736,67886.0,67878.0,0.014738]
[1771650454631,0.029472,67886.0,67878.0,0.014738]
[1771650455524,0.014736,67885.0,67878.0,0.014738]
[1771650457228,0.014736,67884.0,67877.0,0.014738]
[1771650458425,0.014736,67885.0,67877.0,0.014738]
[1771650459529,0.014736,67884.0,67877.0,0.014738]
[1771650460128,0.014736,67885.0,67877.0,0.029476]
[1771650460326,0.014736,67885.0,67877.0,0.014738]
[1771650460731,0.014736,67884.0,67877.0,0.014738]
[1771650461237,0.014736,67885.0,67877.0,0.029476]
[1771650461631,0.014736,67885.0,67877.0,0.014738]
[1771650462836,0.014736,67884.0,67877.0,0.014738]
[1771650467528,0.014737,67881.0,67871.0,0.014739]
[1771650467734,0.014737,67881.0,67873.0,0.014739]
[1771650467930,0.014737,67881.0,67873.0,0.029478]
[1771650468131,0.014737,67881.0,67874.0,0.014739]
[1771650469940,0.3318963,67887.0,67869.0,0.32885388]
[1771650470146,0.029476,67878.0,67870.0,0.014739]
[1771650470345,0.014738,67878.0,67871.0,0.014739]
[1771650471649,0.014738,67879.0,67871.0,0.014739]
[1771650473052,0.014738,67878.0,67868.0,0.01474]
[1771650473250,0.014738,67877.0,67869.0,0.014739]
[1771650473549,0.014738,67877.0,67870.0,0.014739]
[1771650474640,0.014738,67876.0,67868.0,0.01474]
[1771650474845,0.014738,67878.0,67870.0,0.014739]
[1771650475146,0.014738,67878.0,67870.0,0.029478]
[1771650475341,0.014738,67878.0,67871.0,0.014739]
[1771650476247,0.014738,67879.0,67871.0,0.014739]
[1771650476647,0.014738,67879.0,67870.0,0.014739]
[1771650476953,0.014739,67875.0,67867.0,0.01474]
[1771650477149,0.029478,67875.0,67864.0,0.014741]
[1771650477347,0.029478,67875.0,67866.0,0.01474]
[1771650478044,0.014739,67874.0,67866.0,0.01474]
[1771650479551,0.014739,67874.0,67866.0,0.02948]
[1771650479747,0.014739,67874.0,67867.0,0.01474]
[1771650480250,0.014739,67874.0,67866.0,0.01474]
[1771650481548,0.014739,67874.0,67864.0,0.014741]
[1771650481549,0.014737,67881.0,67865.0,0.21670926]
[1771650481753,0.014737,67881.0,67874.0,0.014739]
[1771650482153,0.014737,67881.0,67873.0,0.014739]
[1771650482950,0.014737,67881.0,67874.0,0.014739]
[1771650483953,0.014737,67881.0,67874.0,0.029477]
[1771650484455,0.014737,67881.0,67875.0,0.014738]
[1771650484755,0.014737,67881.0,67876.0,0.014738]
[1771650486251,0.014736,67886.0,67871.0,0.014739]
[1771650486252,0.014737,67882.0,67871.0,0.014739]
[1771650486452,0.014737,67884.0,67872.0,0.014739]
[1771650486752,0.014737,67882.0,67874.0,0.014738]
[1771650486954,0.014737,67882.0,67876.0,0.014738]
[1771650487155,0.014737,67882.0,67877.0,0.014738]
[1771650487750,0.014737,67882.0,67876.0,0.014738]
[1771650488659,0.029474,67882.0,67876.0,0.014738]
[1771650491360,0.014737,67881.0,67875.0,0.014738]
[1771650493766,0.014737,67880.0,67875.0,0.014738]
[1771650494064,0.014737,67880.0,67874.0,0.014739]
[1771650495058,0.014737,67880.0,67874.0,0.015659]
[1771650495262,0.014737,67880.0,67874.0,0.014739]
[1771650496264,0.014737,67880.0,67873.0,0.014739]
[1771650496666,0.014738,67879.0,67872.0,0.014739]
[1771650499365,0.014737,67882.0,67872.0,0.014739]
[1771650499366,0.014737,67880.0,67872.0,0.014739]
[1771650501164,0.014736,67884.0,67870.0,0.18074581]
[1771650501371,0.014736,67885.0,67875.0,0.014738]
[1771650502372,0.014736,67885.0,67876.0,0.014738]
[1771650503971,0.014737,67884.0,67876.0,0.014738]
[1771650505477,0.014737,67883.0,67876.0,0.014738]
[1771650507076,0.014737,67883.0,67877.0,0.00084]
[1771650507275,0.014737,67883.0,67876.0,0.014738]
[1771650509277,0.014737,67882.0,67876.0,0.014738]
[1771650510278,0.014737,67882.0,67875.0,0.014738]
[1771650517980,0.014737,67883.0,67875.0,0.014738]
[1771650518181,0.014737,67883.0,67876.0,0.014738]
[1771650526184,0.014737,67883.0,67875.0,0.014738]
[1771650526488,0.014737,67882.0,67875.0,0.014738]
[1771650530986,0.014737,67882.0,67874.0,0.014739]
[1771650531485,0.014737,67882.0,67874.0,0.029478]
[1771650532886,0.014737,67882.0,67874.0,0.014739]
[1771650533986,0.014737,67882.0,67874.0,0.029477]
[1771650536091,0.014737,67882.0,67874.0,0.014738]
[1771650536289,0.014737,67882.0,67875.0,0.014738]
[1771650538093,0.014737,67883.0,67875.0,0.014738]
[1771650538891,0.014737,67883.0,67876.0,0.014738]
[1771650539795,0.029474,67883.0,67876.0,0.014738]
[1771650540095,0.029474,67883.0,67875.0,0.014738]
[1771650540898,0.014737,67883.0,67875.0,0.014738]
[1771650543298,0.029474,67883.0,67875.0,0.014738]
[1771650551318,0.014737,67882.0,67875.0,0.014738]
[1771650554423,0.014737,67883.0,67872.0,0.014739]
[1771650554619,0.014736,67884.0,67876.0,0.029476]
[1771650554915,0.014736,67884.0,67876.0,0.014738]
[1771650555113,0.014737,67883.0,67876.0,0.014738]
[1771650555723,0.014736,67884.0,67877.0,0.014738]
[1771650556219,0.029473,67884.0,67877.0,0.014738]
[1771650556420,0.014736,67884.0,67877.0,0.014738]
[1771650556721,0.014737,67883.0,67876.0,0.014738]
[1771650563526,0.014737,67883.0,67875.0,0.014738]
[1771650564229,0.014736,67884.0,67875.0,0.014738]
[1771650564422,0.014737,67882.0,67875.0,0.014738]
[1771650571229,0.014737,67883.0,67876.0,0.014738]
[1771650577235,0.014736,67886.0,67878.0,0.014738]
[1771650577441,0.014736,67885.0,67878.0,0.014738]
[1771650580434,0.014736,67885.0,67878.0,0.029476]
[1771650580639,0.014736,67885.0,67878.0,0.014738]
[1771650581541,0.014736,67885.0,67878.0,0.029476]
[1771650582943,0.014736,67885.0,67879.0,0.014737]
[1771650583338,0.014737,67884.0,67878.0,0.014738]
[1771650583640,0.014737,67883.0,67878.0,0.014738]
[1771650585336,0.014737,67883.0,67876.0,0.014738]
[1771650591143,0.014737,67882.0,67875.0,0.014738]
[1771650591351,0.014737,67883.0,67875.0,0.014738]
[1771650593150,0.014737,67882.0,67875.0,0.014738]
[1771650593848,0.014737,67883.0,67876.0,0.014738]
[1771650594047,0.014737,67883.0,67877.0,0.00084]
[1771650594251,0.014737,67883.0,67876.0,0.014738]
[1771650594754,0.014737,67882.0,67875.0,0.014738]
[1771650595151,0.014737,67882.0,67876.0,0.014738]
[1771650596052,0.014737,67884.0,67877.0,0.014738]
[1771650598645,0.014737,67884.0,67876.0,0.014738]
[1771650598646,0.014737,67884.0,67878.0,0.014738]
[1771650601255,0.029474,67884.0,67878.0,0.014738]
[1771650601758,0.014737,67883.0,67877.0,0.014738]
[1771650602460,0.014736,67885.0,67877.0,0.014738]
[1771650602758,0.014736,67887.0,67878.0,0.014738]
[1771650602961,0.014736,67884.0,67878.0,0.014738]
[1771650603457,0.014736,67884.0,67877.0,0.014738]
[1771650604864,0.014737,67883.0,67877.0,0.014738]
[1771650609268,0.014736,67884.0,67877.0,0.014738]
[1771650617666,0.014737,67883.0,67876.0,0.014738]
[1771650621068,0.014737,67883.0,67877.0,0.00092]
[1771650621272,0.014737,67883.0,67876.0,0.014738]
[1771650623371,0.18071203,67886.0,67869.0,0.32885388]
[1771650623568,0.01474,67868.0,67860.0,0.014741]
[1771650623970,0.01474,67868.0,67859.0,0.014742]
[1771650624263,0.01474,67867.0,67859.0,0.014742]
[1771650624977,0.01474,67867.0,67860.0,0.014741]
[1771650625379,0.01474,67868.0,67861.0,0.014741]
[1771650626066,0.01474,67868.0,67860.0,0.014742]
[1771650626470,0.01474,67868.0,67861.0,0.014741]
[1771650632586,0.014739,67871.0,67863.0,0.014741]
[1771650633290,0.014739,67870.0,67863.0,0.014741]
[1771650636894,0.01474,67869.0,67862.0,0.014741]
[1771650638093,0.01474,67869.0,67862.0,0.029482]
[1771650638996,0.01474,67870.0,67863.0,0.014741]
[1771650639397,0.014739,67871.0,67863.0,0.029482]
[1771650639899,0.014739,67871.0,67863.0,0.014741]
[1771650640294,0.01474,67870.0,67863.0,0.014741]
[1771650640798,0.014739,67871.0,67860.0,0.014741]
[1771650640799,0.014739,67871.0,67864.0,0.014741]
[1771650640998,0.014739,67870.0,67863.0,0.014741]
[1771650642099,0.01474,67869.0,67863.0,0.014741]
[1771650643596,0.014738,67877.0,67870.0,0.014739]
[1771650644195,0.014738,67876.0,67870.0,0.014739]
[1771650645206,0.014738,67876.0,67870.0,0.029478]
[1771650645703,0.014738,67876.0,67870.0,0.014739]
[1771650646101,0.014738,67877.0,67870.0,0.029478]
[1771650646706,0.014738,67876.0,67870.0,0.029478]
[1771650647306,0.014738,67875.0,67870.0,0.014739]
[1771650649306,0.014737,67880.0,67871.0,0.014739]
[1771650649610,0.014738,67877.0,67871.0,0.014739]
[1771650649804,0.029476,67877.0,67871.0,0.014739]
[1771650650798,0.014738,67876.0,67871.0,0.014739]
[1771650651000,0.014738,67877.0,67872.0,0.014739]
[1771650651203,0.014738,67878.0,67872.0,0.014739]
[1771650651404,0.029474,67880.0,67873.0,0.014739]
[1771650651609,0.014738,67879.0,67873.0,0.014739]
[1771650651909,0.014738,67879.0,67872.0,0.014739]
[1771650652106,0.014738,67878.0,67872.0,0.014739]
[1771650656414,0.014738,67879.0,67872.0,0.014739]
[1771650657416,0.029476,67879.0,67873.0,0.014739]
[1771650657613,0.014738,67878.0,67873.0,0.014739]
[1771650659117,0.014738,67876.0,67871.0,0.014739]
[1771650660417,0.014738,67877.0,67870.0,0.014739]
[1771650660716,0.029478,67874.0,67868.0,0.01474]
[1771650660917,0.014739,67873.0,67868.0,0.01474]
[1771650661317,0.014739,67873.0,67867.0,0.01474]
[1771650664216,0.014738,67876.0,67869.0,0.01474]
[1771650666520,0.014738,67876.0,67867.0,0.01474]
[1771650666521,0.014737,67882.0,67864.0,0.014741]
[1771650666728,0.23627485,67881.0,67866.0,0.01474]
[1771650667022,0.21300323,67888.0,67865.0,0.014741]
[1771650667023,0.014739,67873.0,67865.0,0.014741]
[1771650667428,0.014739,67874.0,67867.0,0.01474]
[1771650667614,0.014738,67879.0,67872.0,0.014739]
[1771650667915,0.23629251,67878.0,67872.0,0.014739]
[1771650668116,0.014738,67879.0,67872.0,0.014739]
[1771650668421,0.23631066,67878.0,67872.0,0.014739]
[1771650668625,0.014738,67879.0,67872.0,0.014739]
[1771650668822,0.23631018,67878.0,67872.0,0.014739]
[1771650669023,0.014738,67879.0,67872.0,0.014739]
[1771650669218,0.23630996,67878.0,67872.0,0.014739]
[1771650669522,0.23630996,67877.0,67873.0,0.014739]
[1771650669830,0.014737,67881.0,67873.0,0.014739]
[1771650670016,0.23633177,67880.0,67873.0,0.014739]
[1771650670216,0.23633177,67879.0,67873.0,0.014739]
[1771650670515,0.23633177,67878.0,67873.0,0.014739]
[1771650670715,0.23633177,67877.0,67873.0,0.014739]
[1771650671016,0.014737,67880.0,67873.0,0.014739]
[1771650671216,0.23635873,67879.0,67873.0,0.014739]
[1771650671417,0.23635873,67878.0,67873.0,0.014739]
[1771650671612,0.23635873,67877.0,67873.0,0.014739]
[1771650671818,0.014737,67880.0,67873.0,0.014739]
[1771650672332,0.23643595,67879.0,67874.0,0.014739]
[1771650672524,0.014737,67880.0,67874.0,0.014739]
[1771650672826,0.23643595,67879.0,67874.0,0.014739]
[1771650673025,0.23643595,67879.0,67872.0,0.014739]
[1771650673026,0.014737,67880.0,67870.0,0.014739]
[1771650673227,0.23643595,67879.0,67870.0,0.014739]
[1771650673426,0.014737,67880.0,67870.0,0.014739]
[1771650673627,0.2365023,67879.0,67870.0,0.014739]
[1771650673828,0.014737,67880.0,67870.0,0.014739]
[1771650674030,0.014738,67878.0,67871.0,0.014739]
[1771650674229,0.014738,67877.0,67871.0,0.014739]
[1771650674422,0.014738,67876.0,67868.0,0.01474]
[1771650674723,0.014738,67877.0,67871.0,0.014739]
[1771650675226,0.014738,67877.0,67870.0,0.014739]
[1771650675227,0.014738,67876.0,67863.0,0.32790622]
[1771650675429,0.014738,67876.0,67870.0,0.014739]
[1771650677933,0.014738,67876.0,67868.0,0.01474]
[1771650679232,0.014738,67876.0,67869.0,0.01474]
[1771650680825,0.029476,67876.0,67869.0,0.01474]
[1771650681024,0.014738,67876.0,67869.0,0.01474]
[1771650681226,0.014738,67875.0,67869.0,0.01474]
[1771650681426,0.014738,67876.0,67869.0,0.01474]
[1771650681734,0.029476,67876.0,67869.0,0.01474]
[1771650681932,0.014738,67876.0,67869.0,0.01474]
[1771650682531,0.014738,67877.0,67867.0,0.01474]
[1771650682834,0.014738,67875.0,67869.0,0.01474]
[1771650685737,0.014738,67875.0,67864.0,0.014741]
[1771650685738,0.014737,67883.0,67876.0,0.014738]
[1771650685929,0.23659843,67882.0,67875.0,0.014738]
[1771650686130,0.23659843,67881.0,67875.0,0.014738]
[1771650686331,0.23659843,67880.0,67875.0,0.014738]
[1771650686531,0.23659843,67879.0,67875.0,0.014738]
[1771650686834,0.23659843,67878.0,67875.0,0.014738]
[1771650687035,0.014737,67881.0,67875.0,0.014738]
[1771650687238,0.24187831,67880.0,67875.0,0.014738]
[1771650687436,0.24187831,67879.0,67875.0,0.014738]
[1771650687638,0.24187831,67878.0,67875.0,0.014738]
[1771650687939,0.014737,67881.0,67875.0,0.014738]
[1771650688140,0.241878,67880.0,67875.0,0.014738]
[1771650688340,0.241878,67879.0,67875.0,0.014738]
[1771650688532,0.241878,67878.0,67875.0,0.014738]
[1771650688840,0.014737,67881.0,67875.0,0.014738]
[1771650689039,0.24187875,67880.0,67875.0,0.014738]
[1771650689244,0.24187875,67879.0,67875.0,0.014738]
[1771650689435,0.24187875,67878.0,67875.0,0.014738]
[1771650689635,0.014737,67881.0,67875.0,0.014738]
[1771650689838,0.24187911,67880.0,67875.0,0.014738]
[1771650690137,0.24187911,67879.0,67875.0,0.014738]
[1771650690338,0.24187911,67878.0,67875.0,0.014738]
[1771650690540,0.014737,67881.0,67875.0,0.014738]
[1771650690731,0.24187831,67880.0,67875.0,0.014738]
[1771650690927,0.24187831,67879.0,67875.0,0.014738]
[1771650691139,0.24187831,67878.0,67875.0,0.014738]
[1771650691330,0.014737,67881.0,67875.0,0.014738]
[1771650691529,0.24187757,67880.0,67875.0,0.014738]
[1771650691732,0.24187757,67879.0,67875.0,0.014738]
[1771650691932,0.24187757,67878.0,67874.0,0.014739]
[1771650692132,0.014737,67880.0,67874.0,0.014739]
[1771650692332,0.2418766,67879.0,67874.0,0.014739]
[1771650692533,0.2418766,67878.0,67874.0,0.014739]
[1771650692733,0.014737,67880.0,67874.0,0.014739]
[1771650692929,0.2418766,67879.0,67874.0,0.014739]
[1771650693141,0.2418766,67878.0,67874.0,0.014739]
[1771650693445,0.014738,67879.0,67873.0,0.014739]
[1771650693644,0.24187594,67878.0,67873.0,0.014739]
[1771650693846,0.014738,67879.0,67873.0,0.014739]
[1771650694143,0.24187594,67878.0,67873.0,0.014739]
[1771650694342,0.014738,67879.0,67873.0,0.014739]
[1771650694543,0.24187539,67878.0,67873.0,0.014739]
[1771650694743,0.014738,67879.0,67873.0,0.014739]
[1771650694945,0.25661317,67878.0,67871.0,0.029478]
[1771650695144,0.014738,67878.0,67871.0,0.014739]
[1771650696046,0.014738,67878.0,67872.0,0.00096]
[1771650696241,0.014738,67878.0,67871.0,0.014739]
[1771650696547,0.014738,67878.0,67872.0,0.014739]
[1771650698452,0.014738,67879.0,67873.0,0.014739]